fUSD/lending_fUSD_20251206
["ID","MTS","AMOUNT","RATE_DAILY","PERIOD"]
[396558028,1765049457053,-456.33830219,0.00016712,2]
[396558029,1765049457062,-343.582987,0.00016712,2]
[396558030,1765049457071,-633.3073668,0.00016712,2]
[396558031,1765049457082,-500.0,0.00016712,2]
[396558032,1765049457091,-1390.82,0.00016712,2]
[396558033,1765049457100,-500.0,0.00016712,2]
[396558034,1765049457111,-343.582987,0.00016712,2]
[396558035,1765049457126,-500.0,0.00016712,2]
[396558036,1765049457136,-677.32,0.00016712,2]
[396558037,1765049457145,-500.0,0.00016712,2]
[396558038,1765049457154,-503.03,0.00016712,2]
[396558039,1765049457164,-500.0,0.00016712,2]
[396558040,1765049457173,-500.0,0.00016712,2]
[396558041,1765049457183,-500.0,0.00016712,2]
[396558042,1765049457192,-500.0,0.00016712,2]
[396558043,1765049457201,-2753.55,0.00016712,2]
[396558044,1765049457211,-569.94,0.00016712,2]
[396558045,1765049457221,-500.0,0.00016712,2]
[396558046,1765049457230,-500.0,0.00016712,2]
[396558047,1765049457239,-1227.5526684,0.00016732,2]
[396558048,1765049457249,-329.0,0.00016752,2]
[396558049,1765049457260,-7730.2748492,0.00016767,2]
[396558050,1765049457272,-16072.42098377,0.00016767,2]
[396558051,1765049457286,-1299.42556333,0.00016767,2]
[396558052,1765049457309,-22923.0862698,0.00016767,2]
[396558053,1765049457319,-151.0,0.00016767,2]
[396558054,1765049457329,-151.0,0.00016767,2]
[396558055,1765049457339,-151.0,0.00016767,2]
[396558056,1765049457350,-151.0,0.00016767,2]
[396558057,1765049457359,-151.0,0.00016767,2]
[396558058,1765049457369,-151.0,0.00016767,2]
[396558059,1765049457378,-160.049032,0.00016767,2]
[396558060,1765049457388,-151.0,0.00016767,2]
[396558061,1765049457398,-151.0,0.00016767,2]
[396558062,1765049457407,-151.0,0.00016767,2]
[396558063,1765049457416,-151.0,0.00016767,2]
[396558064,1765049457426,-151.0,0.00016767,2]
[396558065,1765049457435,-343.582987,0.00016767,2]
[396558066,1765049457444,-343.582987,0.00016767,2]
[396558067,1765049457633,-343.582987,0.00016767,2]
[396558068,1765049457643,-343.582987,0.00016767,2]
[396558069,1765049457653,-362.47945847,0.00016773,2]
[396558070,1765049457663,-172.44614573,0.00016773,2]
[396558071,1765049457672,-500.42406087,0.00016773,2]
[396558072,1765049457682,-500.0,0.00016773,2]
[396558073,1765049457692,-223.6230072,0.00016773,2]
[396558074,1765049457702,-500.28508051,0.00016773,2]
[396558075,1765049457712,-163.41822659,0.00016773,2]
[396558076,1765049457722,-500.5353026,0.00016773,2]
[396558077,1765049457731,-500.0,0.00016773,2]
[396558078,1765049457741,-500.0,0.00016773,2]
[396558079,1765049457751,-500.48345469,0.00016773,2]
[396558080,1765049457761,-150.0,0.00016792,2]
[396558081,1765049457771,-329.0,0.00016793,2]
[396558082,1765049457781,-329.0,0.00016812,2]
[396558083,1765049457790,-1000.0,0.00016815,3]
[396558084,1765049457800,-1227.5526684,0.00016816,2]
[396558085,1765049457809,-329.0,0.00016832,2]
[396558086,1765049457819,-500.0,0.00016849,2]
[396558087,1765049457828,-329.0,0.00016854,2]
[396558088,1765049457838,-296.03495172,0.00016859,2]
[396558089,1765049457848,-1000.0,0.00016875,2]
[396558090,1765049457858,-166.67,0.00016876,2]
[396558091,1765049457878,-110929.41124639,0.00016876,2]
[396558092,1765049457888,-151.0,0.00016876,2]
[396558093,1765049457897,-151.0,0.00016876,2]
[396558094,1765049457906,-235.604668,0.00016876,2]
[396558095,1765049457916,-198.610175,0.00016876,2]
[396558096,1765049457925,-151.0,0.00016876,2]
[396558097,1765049457934,-151.0,0.00016876,2]
[396558098,1765049457944,-151.0,0.00016876,2]
[396558099,1765049457954,-151.0,0.00016876,2]
[396558100,1765049457963,-151.0,0.00016876,2]
[396558101,1765049457972,-167.757387,0.00016876,2]
[396558102,1765049457982,-155.965352,0.00016876,2]
[396558103,1765049457992,-151.0,0.00016876,2]
[396558104,1765049458002,-151.0,0.00016876,2]
[396558105,1765049458019,-151.0,0.00016876,2]
[396558106,1765049458032,-151.0,0.00016876,2]
[396558107,1765049458042,-151.0,0.00016876,2]
[396558108,1765049458052,-151.0,0.00016876,2]
[396558109,1765049458063,-294.167455,0.00016876,2]
[396558110,1765049458073,-151.0,0.00016876,2]
[396558111,1765049458083,-151.0,0.00016876,2]
[396558112,1765049458093,-151.0,0.00016876,2]
[396558113,1765049458104,-151.0,0.00016876,2]
[396558114,1765049458114,-151.0,0.00016876,2]
[396558115,1765049458124,-151.0,0.00016876,2]
[396558116,1765049458134,-151.0,0.00016876,2]
[396558117,1765049458143,-151.0,0.00016876,2]
[396558118,1765049458153,-151.0,0.00016876,2]
[396558119,1765049458163,-151.0,0.00016876,2]
[396558120,1765049458173,-151.0,0.00016876,2]
[396558121,1765049458182,-151.0,0.00016876,2]
[396558122,1765049458192,-151.0,0.00016876,2]
[396558123,1765049458201,-151.0,0.00016876,2]
[396558124,1765049458211,-151.0,0.00016876,2]
[396558125,1765049458221,-151.0,0.00016876,2]
[396558126,1765049458231,-151.0,0.00016876,2]
[396558127,1765049458240,-164.118385,0.00016876,2]
[396558128,1765049458250,-151.0,0.00016876,2]
[396558129,1765049458263,-151.0,0.00016876,2]
[396558130,1765049458272,-151.0,0.00016876,2]
[396558131,1765049458283,-151.0,0.00016876,2]
[396558132,1765049458292,-151.0,0.00016876,2]
[396558133,1765049458303,-279.165607,0.00016876,2]
[396558134,1765049458313,-279.165607,0.00016876,2]
[396558135,1765049458324,-151.0,0.00016876,2]
[396558136,1765049458335,-902.7708,0.00016876,2]
[396558137,1765049458345,-279.165607,0.00016876,2]
[396558138,1765049458355,-151.0,0.00016876,2]
[396558139,1765049458365,-902.7708,0.00016876,2]
[396558140,1765049458374,-902.7708,0.00016876,2]
[396558141,1765049458384,-151.0,0.00016876,2]
[396558142,1765049458393,-151.0,0.00016876,2]
[396558143,1765049458403,-902.7708,0.00016876,2]
[396558144,1765049458413,-151.0,0.00016876,2]
[396558145,1765049458423,-279.165607,0.00016876,2]
[396558146,1765049458432,-189.468406,0.00016876,2]
[396558147,1765049458442,-151.0,0.00016876,2]
[396558148,1765049458452,-151.0,0.00016876,2]
[396558149,1765049458463,-151.0,0.00016876,2]
[396558150,1765049458473,-192.070335,0.00016876,2]
[396558151,1765049458483,-151.0,0.00016876,2]
[396558152,1765049458493,-151.0,0.00016876,2]
[396558153,1765049458503,-151.0,0.00016876,2]
[396558154,1765049458512,-151.0,0.00016876,2]
[396558155,1765049458522,-151.0,0.00016876,2]
[396558156,1765049458532,-151.0,0.00016876,2]
[396558157,1765049458542,-151.0,0.00016876,2]
[396558158,1765049458552,-151.0,0.00016876,2]
[396558159,1765049458561,-151.0,0.00016876,2]
[396558160,1765049458570,-151.0,0.00016876,2]
[396558161,1765049458580,-158.25098337,0.00016896,2]
[396558162,1765049458591,-151.0,0.000169,2]
[396558163,1765049458601,-1227.5526684,0.000169,2]
[396558164,1765049458611,-1654.16193496,0.000169,2]
[396558165,1765049458620,-180.26689482,0.000169,2]
[396558166,1765049458630,-168.0,0.00016913,2]
[396558167,1765049458640,-250.0,0.00016929,2]
[396558168,1765049458650,-168.0,0.00016942,2]
[396558169,1765049458659,-3200.0,0.00016945,2]
[396558170,1765049458669,-500.0,0.00016972,2]
[396558171,1765049458678,-500.0,0.00016973,2]
[396558172,1765049458688,-500.0,0.00016973,2]
[396558173,1765049458700,-500.0,0.00016973,2]
[396558174,1765049458710,-500.0,0.00016973,2]
[396558175,1765049458720,-500.0,0.00016973,2]
[396558176,1765049458730,-500.0,0.00016973,2]
[396558177,1765049458739,-493.33790471,0.00016973,2]
[396558178,1765049458754,-6.66209529,0.00016973,2]
[396558179,1765049458764,-387.09654553,0.00016973,2]
[396558180,1765049458809,-500.0,0.00016438,2]
[396558181,1765049458820,-112.90345447,0.00016973,2]
[396558182,1765049458831,-500.0,0.00016973,2]
[396558183,1765049458840,-500.0,0.00016973,2]
[396558184,1765049458850,-253.97578977,0.00016973,2]
[396558185,1765049458864,-246.02421023,0.00016973,2]
[396558186,1765049458873,-500.0,0.00016973,2]
[396558187,1765049458883,-0.69146274,0.00016973,2]
[396558188,1765049459365,-241.44790262,0.00016973,2]
[396558189,1765049459375,-500.0,0.00016973,2]
[396558190,1765049459384,-500.0,0.00016973,2]
[396558191,1765049459393,-208.04709738,0.00016973,2]
[396558192,1765049460361,-336.54278996,0.000159,2]
[396558193,1765049460370,-2042.5859113,0.00016245,2]
[396558194,1765049460382,-529.68414465,0.00016245,2]
[396558195,1765049460406,-873.72994405,0.00016245,2]
[396558196,1765049460415,-500.0,0.00016438,2]
[396558197,1765049460426,-1262.18,0.00016438,2]
[396558198,1765049460435,-158.41495457,0.00016612,2]
[396558199,1765049460444,-500.0,0.00016712,2]
[396558200,1765049460453,-1262.18,0.00016712,2]
[396558201,1765049460463,-250.967927,0.00016712,2]
[396558202,1765049460472,-291.95290262,0.00016973,2]
[396558203,1765049460482,-500.0,0.00016973,2]
[396558204,1765049460491,-500.0,0.00016973,2]
[396558205,1765049460500,-500.0,0.00016973,2]
[396558206,1765049460510,-500.0,0.00016973,2]
[396558207,1765049460519,-74.42382095,0.00016973,2]
[396558208,1765049460531,-425.57617905,0.00016973,2]
[396558209,1765049460541,-500.0,0.00016973,2]
[396558210,1765049460550,-500.0,0.00016973,2]
[396558211,1765049460559,-500.0,0.00016973,2]
[396558212,1765049460569,-500.0,0.00016973,2]
[396558213,1765049460578,-500.0,0.00016973,2]
[396558214,1765049460587,-500.0,0.00016973,2]
[396558215,1765049460597,-500.0,0.00016973,2]
[396558216,1765049460606,-500.0,0.00016973,2]
[396558217,1765049460616,-500.0,0.00016973,2]
[396558218,1765049460626,-500.0,0.00016973,2]
[396558219,1765049460635,-500.0,0.00016973,2]
[396558220,1765049460645,-500.0,0.00016973,2]
[396558221,1765049460654,-500.0,0.00016973,2]
[396558222,1765049460664,-500.0,0.00016973,2]
[396558223,1765049460674,-500.0,0.00016973,2]
[396558224,1765049460683,-500.0,0.00016985,2]
[396558225,1765049460692,-500.0,0.00016985,2]
[396558226,1765049460702,-600.0,0.00016986,2]
[396558227,1765049460712,-500.0,0.00016986,2]
[396558228,1765049460722,-500.0,0.00016986,2]
[396558229,1765049460731,-504.51,0.00016986,2]
[396558230,1765049460741,-500.0,0.00016986,2]
[396558231,1765049460751,-593.34063804,0.00016986,2]
[396558232,1765049460760,-500.0,0.00016986,2]
[396558233,1765049460770,-500.0,0.00016986,2]
[396558234,1765049460779,-500.0,0.00016986,2]
[396558235,1765049460789,-2008.32,0.00016986,2]
[396558236,1765049460799,-500.0,0.00016986,2]
[396558237,1765049460808,-500.0,0.00016986,2]
[396558238,1765049460817,-500.0,0.00016986,2]
[396558239,1765049460827,-1274.27,0.00016986,2]
[396558240,1765049460836,-500.0,0.00016986,2]
[396558241,1765049460846,-312.2343825,0.00016986,2]
[396558242,1765049460855,-543.95,0.00016986,2]
[396558243,1765049460864,-500.0,0.00016986,2]
[396558244,1765049460874,-1642.59,0.00016986,2]
[396558245,1765049460883,-617.78705067,0.00016986,2]
[396558246,1765049460892,-500.0,0.00016986,2]
[396558247,1765049460902,-500.0,0.00016986,2]
[396558248,1765049460911,-1330.44,0.00016986,2]
[396558249,1765049460920,-500.0,0.00016986,2]
[396558250,1765049460930,-500.0,0.00016986,2]
[396558251,1765049460939,-500.0,0.00016986,2]
[396558252,1765049460948,-500.0,0.00016986,2]
[396558253,1765049460957,-500.0,0.00016986,2]
[396558254,1765049460966,-500.0,0.00016986,2]
[396558255,1765049460975,-1981.1,0.00016986,2]
[396558256,1765049460985,-500.0,0.00016986,2]
[396558257,1765049460994,-540.54662899,0.00016986,2]
[396558258,1765049461003,-500.0,0.00016986,2]
[396558259,1765049461012,-500.0,0.00016986,2]
[396558260,1765049461022,-500.0,0.00016986,2]
[396558261,1765049461031,-500.0,0.00016986,2]
[396558262,1765049461040,-500.0,0.00016986,2]
[396558263,1765049461049,-500.0,0.00016986,2]
[396558264,1765049461058,-2057.39,0.00016986,2]
[396558265,1765049461067,-500.0,0.00016986,2]
[396558266,1765049461077,-1778.56,0.00016986,2]
[396558267,1765049461086,-482.19217756,0.00016986,2]
[396558268,1765049461096,-686.14,0.00016986,2]
[396558269,1765049461106,-535.2187526,0.00016986,2]
[396558270,1765049461116,-500.0,0.00016986,2]
[396558271,1765049461126,-500.0,0.00016986,2]
[396558272,1765049461135,-500.0,0.00016986,2]
[396558273,1765049461145,-343.71993906,0.00016986,2]
[396558274,1765049461154,-2333.88,0.00016986,2]
[396558275,1765049461164,-500.0,0.00016986,2]
[396558276,1765049461173,-500.0,0.00016986,2]
[396558277,1765049461183,-500.0,0.00016986,2]
[396558278,1765049461192,-500.0,0.00016986,2]
[396558279,1765049461202,-500.0,0.00016986,2]
[396558280,1765049461212,-500.0,0.00016986,2]
[396558281,1765049461221,-500.0,0.00016986,2]
[396558282,1765049461231,-500.0,0.00016986,2]
[396558283,1765049461240,-500.0,0.00016986,2]
[396558284,1765049461249,-500.0,0.00016986,2]
[396558285,1765049461262,-500.0,0.00016986,2]
[396558286,1765049461272,-500.0,0.00016986,2]
[396558287,1765049461282,-500.0,0.00016986,2]
[396558288,1765049461292,-500.0,0.00016986,2]
[396558289,1765049461303,-500.0,0.00016986,2]
[396558290,1765049461313,-500.0,0.00016986,2]
[396558291,1765049461323,-500.0,0.00016986,2]
[396558292,1765049461333,-500.0,0.00016986,2]
[396558293,1765049461343,-1329.21,0.00016986,2]
[396558294,1765049461352,-2027.17,0.00016986,2]
[396558295,1765049461362,-500.0,0.00016986,2]
[396558296,1765049461373,-2210.45,0.00016986,2]
[396558297,1765049461382,-500.0,0.00016986,2]
[396558298,1765049461393,-500.0,0.00016986,2]
[396558299,1765049461403,-500.0,0.00016986,2]
[396558300,1765049461412,-500.0,0.00016986,2]
[396558301,1765049461422,-500.0,0.00016986,2]
[396558302,1765049461431,-500.0,0.00016986,2]
[396558303,1765049461441,-500.0,0.00016986,2]
[396558304,1765049461451,-577.55518678,0.00016986,2]
[396558305,1765049461461,-500.0,0.00016986,2]
[396558306,1765049461470,-500.0,0.00016986,2]
[396558307,1765049461480,-500.0,0.00016986,2]
[396558308,1765049461489,-500.0,0.00016986,2]
[396558309,1765049461499,-500.0,0.00016986,2]
[396558310,1765049461509,-500.0,0.00016986,2]
[396558311,1765049461518,-500.0,0.00016986,2]
[396558312,1765049461528,-524.97,0.00016986,2]
[396558313,1765049461537,-500.0,0.00016986,2]
[396558314,1765049461548,-500.0,0.00016986,2]
[396558315,1765049461557,-500.0,0.00016986,2]
[396558316,1765049461567,-500.0,0.00016986,2]
[396558317,1765049461576,-2063.82,0.00016986,2]
[396558318,1765049461586,-500.0,0.00016986,2]
[396558319,1765049461595,-500.0,0.00016986,2]
[396558320,1765049461605,-500.0,0.00016986,2]
[396558321,1765049461615,-500.0,0.00016986,2]
[396558322,1765049461625,-654.82,0.00016986,2]
[396558323,1765049461635,-608.17556434,0.00016986,2]
[396558324,1765049461645,-500.0,0.00016986,2]
[396558325,1765049461654,-500.0,0.00016986,2]
[396558326,1765049461664,-500.0,0.00016986,2]
[396558327,1765049461673,-500.0,0.00016986,2]
[396558328,1765049461683,-2187.18,0.00016986,2]
[396558329,1765049461692,-500.0,0.00016986,2]
[396558330,1765049461705,-440.56603218,0.00016986,2]
[396558331,1765049461715,-500.0,0.00016986,2]
[396558332,1765049461725,-639.87,0.00016986,2]
[396558333,1765049461736,-576.92488424,0.00016986,2]
[396558334,1765049461745,-500.0,0.00016986,2]
[396558335,1765049461755,-559.55,0.00016986,2]
[396558336,1765049461766,-1233.7,0.00016986,2]
[396558337,1765049461775,-500.0,0.00016986,2]
[396558338,1765049461787,-500.0,0.00016986,2]
[396558339,1765049461796,-500.0,0.00016986,2]
[396558340,1765049461806,-500.0,0.00016986,2]
[396558341,1765049461815,-500.0,0.00016986,2]
[396558342,1765049461826,-500.0,0.00016986,2]
[396558343,1765049461836,-500.0,0.00016986,2]
[396558344,1765049461846,-500.0,0.00016986,2]
[396558345,1765049461855,-500.0,0.00016986,2]
[396558346,1765049461864,-500.0,0.00016986,2]
[396558347,1765049461874,-500.0,0.00016986,2]
[396558348,1765049461883,-500.0,0.00016986,2]
[396558349,1765049461893,-500.0,0.00016986,2]
[396558350,1765049461902,-509.49,0.00016986,2]
[396558351,1765049461911,-500.0,0.00016986,2]
[396558352,1765049461921,-500.0,0.00016986,2]
[396558353,1765049461930,-594.01,0.00016986,2]
[396558354,1765049461940,-500.0,0.00016986,2]
[396558355,1765049461950,-500.0,0.00016986,2]
[396558356,1765049461959,-500.0,0.00016986,2]
[396558357,1765049461969,-500.0,0.00016986,2]
[396558358,1765049461978,-500.0,0.00016986,2]
[396558359,1765049461987,-500.0,0.00016986,2]
[396558360,1765049461997,-1738.7,0.00016986,2]
[396558361,1765049462007,-1731.4,0.00016986,2]
[396558362,1765049462017,-500.0,0.00016986,2]
[396558363,1765049462027,-500.0,0.00016986,2]
[396558364,1765049462037,-151.0,0.00016986,2]
[396558365,1765049462047,-500.0,0.00016986,2]
[396558366,1765049462056,-151.0,0.00016986,2]
[396558367,1765049462065,-500.0,0.00016986,2]
[396558368,1765049462075,-292.200681,0.00016986,2]
[396558369,1765049462084,-500.0,0.00016986,2]
[396558370,1765049462095,-500.0,0.00016986,2]
[396558371,1765049462104,-1849.57,0.00016986,2]
[396558372,1765049462113,-500.0,0.00016986,2]
[396558373,1765049462123,-500.0,0.00016986,2]
[396558374,1765049462131,-500.0,0.00016986,2]
[396558375,1765049462141,-500.0,0.00016986,2]
[396558376,1765049462150,-566.49,0.00016986,2]
[396558377,1765049462160,-500.0,0.00016986,2]
[396558378,1765049462169,-1850.6,0.00016986,2]
[396558379,1765049462178,-155.571042,0.00016986,2]
[396558380,1765049462187,-500.0,0.00016986,2]
[396558381,1765049462197,-500.0,0.00016986,2]
[396558382,1765049462209,-554.42,0.00016986,2]
[396558383,1765049462218,-511.87802005,0.00016986,2]
[396558384,1765049462230,-500.0,0.00016986,2]
[396558385,1765049462240,-500.0,0.00016986,2]
[396558386,1765049462250,-151.0,0.00016986,2]
[396558387,1765049462334,-151.0,0.00016986,2]
[396558388,1765049462345,-500.0,0.00016986,2]
[396558389,1765049462355,-518.16208403,0.00016986,2]
[396558390,1765049462364,-2030.28,0.00016986,2]
[396558391,1765049462374,-881.3,0.00016986,2]
[396558392,1765049462387,-500.0,0.00016986,2]
[396558393,1765049462397,-151.0,0.00016986,2]
[396558394,1765049462408,-151.0,0.00016986,2]
[396558395,1765049462418,-500.0,0.00016986,2]
[396558396,1765049462427,-151.0,0.00016986,2]
[396558397,1765049462437,-151.0,0.00016986,2]
[396558398,1765049462446,-151.0,0.00016986,2]
[396558399,1765049462456,-151.0,0.00016986,2]
[396558400,1765049462465,-1951.64,0.00016986,2]
[396558401,1765049462475,-151.0,0.00016986,2]
[396558402,1765049462484,-151.0,0.00016986,2]
[396558403,1765049462493,-151.0,0.00016986,2]
[396558404,1765049462504,-151.0,0.00016986,2]
[396558405,1765049462512,-151.0,0.00016986,2]
[396558406,1765049462522,-151.0,0.00016986,2]
[396558407,1765049462531,-253.838827,0.00016986,2]
[396558408,1765049462540,-151.0,0.00016986,2]
[396558409,1765049462549,-151.0,0.00016986,2]
[396558410,1765049462559,-151.0,0.00016986,2]
[396558411,1765049462568,-151.0,0.00016986,2]
[396558412,1765049462577,-151.0,0.00016986,2]
[396558413,1765049462587,-151.0,0.00016986,2]
[396558414,1765049462596,-151.0,0.00016986,2]
[396558415,1765049462605,-151.0,0.00016986,2]
[396558416,1765049462615,-500.0,0.00016986,2]
[396558417,1765049462625,-500.0,0.00016986,2]
[396558418,1765049462635,-313.729484,0.00016986,2]
[396558419,1765049462644,-313.729484,0.00016986,2]
[396558420,1765049462654,-313.729484,0.00016986,2]
[396558421,1765049462664,-801.09,0.00016986,2]
[396558422,1765049462674,-313.729484,0.00016986,2]
[396558423,1765049462684,-500.0,0.00016986,2]
[396558424,1765049462693,-1841.82,0.00016986,2]
[396558425,1765049462704,-2182.09,0.00016986,2]
[396558426,1765049462714,-500.0,0.00016986,2]
[396558427,1765049462723,-313.729484,0.00016986,2]
[396558428,1765049462733,-313.729484,0.00016986,2]
[396558429,1765049462742,-151.0,0.00016986,2]
[396558430,1765049462750,-500.0,0.00016986,2]
[396558431,1765049462760,-151.0,0.00016986,2]
[396558432,1765049462769,-313.729484,0.00016986,2]
[396558433,1765049462779,-1689.23,0.00016986,2]
[396558434,1765049462788,-313.729484,0.00016986,2]
[396558435,1765049462798,-500.0,0.00016986,2]
[396558436,1765049462807,-164.915832,0.00016986,2]
[396558437,1765049462816,-500.0,0.00016986,2]
[396558438,1765049462826,-1910.94,0.00016986,2]
[396558439,1765049462835,-500.0,0.00016986,2]
[396558440,1765049462844,-500.0,0.00016986,2]
[396558441,1765049462854,-500.0,0.00016986,2]
[396558442,1765049462863,-780.67,0.00016986,2]
[396558443,1765049462872,-500.0,0.00016986,2]
[396558444,1765049462881,-500.0,0.00016986,2]
[396558445,1765049462891,-500.0,0.00016986,2]
[396558446,1765049462902,-500.0,0.00016986,2]
[396558447,1765049462911,-500.0,0.00016986,2]
[396558448,1765049462921,-1633.63,0.00016986,2]
[396558449,1765049462931,-500.0,0.00016986,2]
[396558450,1765049462941,-615.68,0.00016986,2]
[396558451,1765049462951,-1983.08,0.00016986,2]
[396558452,1765049462962,-500.0,0.00016986,2]
[396558453,1765049462971,-500.0,0.00016986,2]
[396558454,1765049462981,-428.28838357,0.00016986,2]
[396558455,1765049462990,-500.0,0.00016986,2]
[396558456,1765049463000,-3304.31,0.00016986,2]
[396558457,1765049463009,-500.0,0.00016986,2]
[396558458,1765049463019,-500.0,0.00016986,2]
[396558459,1765049463028,-2096.55,0.00016986,2]
[396558460,1765049463037,-500.0,0.00016986,2]
[396558461,1765049463047,-500.0,0.00016986,2]
[396558462,1765049463056,-938.87,0.00016986,2]
[396558463,1765049463065,-500.0,0.00016986,2]
[396558464,1765049463075,-638.51,0.00016986,2]
[396558465,1765049463085,-500.0,0.00016986,2]
[396558466,1765049463094,-500.0,0.00016986,2]
[396558467,1765049463104,-500.0,0.00016986,2]
[396558468,1765049463113,-500.0,0.00016986,2]
[396558469,1765049463122,-500.0,0.00016986,2]
[396558470,1765049463132,-2088.59,0.00016986,2]
[396558471,1765049463141,-2178.91,0.00016986,2]
[396558472,1765049463151,-500.0,0.00016986,2]
[396558473,1765049463160,-500.0,0.00016986,2]
[396558474,1765049463170,-500.0,0.00016986,2]
[396558475,1765049463180,-500.0,0.00016986,2]
[396558476,1765049463189,-500.0,0.00016986,2]
[396558477,1765049463199,-2346.06,0.00016986,2]
[396558478,1765049463209,-675.95,0.00016986,2]
[396558479,1765049463218,-500.0,0.00016986,2]
[396558480,1765049463227,-500.0,0.00016986,2]
[396558481,1765049463237,-500.0,0.00016986,2]
[396558482,1765049463246,-500.0,0.00016986,2]
[396558483,1765049463258,-500.0,0.00016986,2]
[396558484,1765049463268,-500.0,0.00016986,2]
[396558485,1765049463278,-500.0,0.00016986,2]
[396558486,1765049463287,-500.0,0.00016986,2]
[396558487,1765049463296,-500.0,0.00016986,2]
[396558488,1765049463307,-500.0,0.00016986,2]
[396558489,1765049463316,-500.0,0.00016986,2]
[396558490,1765049463325,-500.0,0.00016986,2]
[396558491,1765049463335,-500.0,0.00016986,2]
[396558492,1765049463345,-500.0,0.00016986,2]
[396558493,1765049463354,-500.0,0.00016986,2]
[396558494,1765049463364,-748.57,0.00016986,2]
[396558495,1765049463373,-500.0,0.00016986,2]
[396558496,1765049463383,-500.0,0.00016986,2]
[396558497,1765049463392,-2174.04,0.00016986,2]
[396558498,1765049463401,-2460.87,0.00016986,2]
[396558499,1765049463411,-500.0,0.00016986,2]
[396558500,1765049463420,-151.0,0.00016986,2]
[396558501,1765049463429,-4255.66,0.00016986,2]
[396558502,1765049463439,-2182.12,0.00016986,2]
[396558503,1765049463448,-500.0,0.00016986,2]
[396558504,1765049463458,-151.0,0.00016986,2]
[396558505,1765049463467,-500.0,0.00016986,2]
[396558506,1765049463477,-151.0,0.00016986,2]
[396558507,1765049463486,-500.0,0.00016986,2]
[396558508,1765049463495,-500.0,0.00016986,2]
[396558509,1765049463505,-500.0,0.00016986,2]
[396558510,1765049463514,-1995.87,0.00016986,2]
[396558511,1765049463523,-500.0,0.00016986,2]
[396558512,1765049463533,-500.0,0.00016986,2]
[396558513,1765049463542,-619.13,0.00016986,2]
[396558514,1765049463552,-500.0,0.00016986,2]
[396558515,1765049463561,-500.0,0.00016986,2]
[396558516,1765049463571,-500.0,0.00016986,2]
[396558517,1765049463581,-500.0,0.00016986,2]
[396558518,1765049463590,-500.0,0.00016986,2]
[396558519,1765049463599,-500.0,0.00016986,2]
[396558520,1765049463608,-2355.8,0.00016986,2]
[396558521,1765049463618,-340.53560338,0.00016986,2]
[396558522,1765049463627,-500.0,0.00016986,2]
[396558523,1765049463636,-500.0,0.00016986,2]
[396558524,1765049463646,-500.0,0.00016986,2]
[396558525,1765049463655,-500.0,0.00016986,2]
[396558526,1765049463664,-2180.18,0.00016986,2]
[396558527,1765049463673,-500.0,0.00016986,2]